[Event "Reykjavik Open 2022"]
[Site "Reykjavik"]
[Date "2022.04.06"]
[Round "1.40"]
[White "Barthel, Ansgar"]
[Black "Hedman, Erik"]
[Result "1/2-1/2"]
[ECO "B07"]
[WhiteElo "2053"]
[BlackElo "2368"]
[Annotator "NA RC"]
[PlyCount "58"]
[EventDate "2022.04.06"]
[EventCountry "ISL"]
[SourceTitle "playchess.com"]
[Source "ChessBase"]
[SourceQuality "1"]
[TimeControl "40/5400+30:1800+30"]

1. e4 {[%emt 0:00:03]} d6 {[%emt 0:00:13]} 2. d4 {[%emt 0:00:06]} Nf6 {[%emt 0:00:07]} 3. Nc3 {[%emt 0:00:06]} e5 {[%emt 0:00:08]} 4. dxe5 {[%emt 0:00:10]} dxe5 {[%emt 0:00:05]} 5. Qxd8+ {[%emt 0:00:08]} Kxd8 {[%emt 0:00:04]} 6. Bc4 {[%emt 0:00:08]} Bb4 {[%emt 0:00:16]} 7. Bg5 {[%emt 0:11:47]} Bxc3+ {[%emt 0:00:11]} 8. bxc3 {[%emt 0:00:05]} Be6 {[%emt 0:00:20]} 9. Bxe6 {[%emt 0:01:40]} fxe6 {[%emt 0:00:05]} 10. f3 {[%emt 0:01:53]} Nbd7 {[%emt 0:00:52]} 11. Nh3 {[%emt 0:07:05]} h6 {[%emt 0:01:10]} 12. Bh4 {[%emt 0:01:48]} a5 {[%emt 0:04:57]} 13. Nf2 {[%emt 0:05:13]} Ra6 {[%emt 0:03:09]} 14. Nd3 {[%emt 0:04:05]} Rc6 {[%emt 0:00:17]} 15. O-O-O {[%emt 0:03:54]} Kc8 {[%emt 0:02:01]} 16. Bg3 {[%emt 0:03:01]} Rxc3 {[%emt 0:02:43]} 17. Nxe5 {[%emt 0:08:17]} Rc5 {[%emt 0:04:22]} 18. Nxd7 {[%emt 0:07:36]} Nxd7 {[%emt 0:00:06]} 19. Rd3 {[%emt 0:01:52]} Rf8 {[%emt 0:08:36]} 20. Rhd1 {[%emt 0:01:27]} Rf7 {[%emt 0:00:45]} 21. h4 {[%emt 0:05:59]} b6 {[%emt 0:01:27]} 22. Bf2 {[%emt 0:04:16]} Rc6 {[%emt 0:01:16]} 23. Bd4 {[%emt 0:00:29]} e5 {[%emt 0:05:18]} 24. Bb2 {[%emt 0:07:22]} Rg6 {[%emt 0:02:06]} 25. R1d2 {[%emt 0:00:35]} Rg3 {[%emt 0:03:28]} 26. Rd5 {[%emt 0:01:50]} Re7 {[%emt 0:00:23]} 27. Ba3 {[%emt 0:05:41]} Rf7 {[%emt 0:01:26]} 28. Bb2 {[%emt 0:00:17]} Re7 {[%emt 0:00:16]} 29. Ba3 {[%emt 0:00:05]} Rf7 {[%emt 0:01:10]} 1/2-1/2

[Event "Reykjavik Open 2022"]
[Site "Reykjavik"]
[Date "2022.04.06"]
[Round "1.41"]
[White "Rosen, Eric"]
[Black "Murphy, Ryan"]
[Result "1-0"]
[ECO "B10"]
[WhiteElo "2356"]
[BlackElo "2051"]
[Annotator "NA RC"]
[PlyCount "47"]
[EventDate "2022.04.06"]
[EventCountry "ISL"]
[SourceTitle "playchess.com"]
[Source "ChessBase"]
[SourceQuality "1"]
[TimeControl "40/5400+30:1800+30"]

1. e4 {[%emt 0:00:16]} c6 {[%emt 0:00:16]} 2. d3 {[%emt 0:00:22]} d5 {[%emt 0:00:31]} 3. Nd2 {[%emt 0:00:05]} g6 {[%emt 0:00:18]} 4. Ngf3 {[%emt 0:00:35]} Bg7 {[%emt 0:00:16]} 5. g3 {[%emt 0:00:08]} e5 {[%emt 0:01:03]} 6. Bg2 {[%emt 0:00:08]} Ne7 {[%emt 0:00:19]} 7. O-O {[%emt 0:00:10]} O-O {[%emt 0:00:57]} 8. a4 {[%emt 0:00:05]} a5 {[%emt 0:06:16]} 9. c3 {[%emt 0:00:12]} h6 {[%emt 0:06:10]} 10. Re1 {[%emt 0:02:07]} Re8 {[%emt 0:05:32]} 11. exd5 {[%emt 0:07:30]} Nxd5 {[%emt 0:00:09]} 12. Nc4 {[%emt 0:00:30]} Nd7 {[%emt 0:05:04]} 13. d4 {[%emt 0:07:18]} exd4 {[%emt 0:04:17]} 14. Rxe8+ {[%emt 0:01:29]} Qxe8 {[%emt 0:00:43]} 15. Nxd4 {[%emt 0:01:10]} N7f6 {[%emt 0:12:51]} 16. Bd2 {[%emt 0:05:15]} Qf8 {[%emt 0:09:27]} 17. Qb3 {[%emt 0:03:05]} h5 {[%emt 0:00:51]} 18. Re1 {[%emt 0:07:32]} h4 {[%emt 0:01:57]} 19. Ne5 {[%emt 0:05:27]} Bh6 {[%emt 0:21:51]} 20. f4 {[%emt 0:11:19]} Qc5 {[%emt 0:02:24]} 21. Be3 {[%emt 0:03:54]} Qf8 {[%emt 0:04:57]} 22. Bf2 {[%emt 0:01:58]} h3 {[%emt 0:02:10]} 23. Bf3 {[%emt 0:03:05]} Qd6 {[%emt 0:07:40]} 24. c4 {[%emt 0:09:39]} 1-0

[Event "Reykjavik Open 2022"]
[Site "Reykjavik"]
[Date "2022.04.06"]
[Round "1.42"]
[White "Marzik, Hans"]
[Black "Dishman, Stephen"]
[Result "1/2-1/2"]
[ECO "D23"]
[WhiteElo "2050"]
[BlackElo "2332"]
[Annotator "RC"]
[PlyCount "123"]
[EventDate "2022.04.06"]
[EventCountry "ISL"]
[SourceTitle "playchess.com"]
[Source "ChessBase"]
[SourceQuality "1"]
[TimeControl "40/5400+30:1800+30"]

1. d4 {[%emt 0:00:02]} d5 {[%emt 0:00:07]} 2. c4 {[%emt 0:00:13]} c6 {[%emt 0:00:09]} 3. Nf3 {[%emt 0:00:04]} Nf6 {[%emt 0:00:10]} 4. Qb3 {[%emt 0:00:05]} dxc4 {[%emt 0:00:21]} 5. Qxc4 {[%emt 0:00:04]} Bg4 {[%emt 0:00:10]} 6. Nc3 {[%emt 0:02:54]} Nbd7 {[%emt 0:00:35]} 7. Bf4 {[%emt 0:02:27]} Bxf3 {[%emt 0:06:16]} 8. gxf3 {[%emt 0:01:03]} Qa5 {[%emt 0:01:54]} 9. O-O-O {[%emt 0:09:15]} Nb6 {[%emt 0:10:42]} 10. Qb3 {[%emt 0:01:08]} Nfd5 {[%emt 0:02:50]} 11. Bd2 {[%emt 0:05:45]} Nxc3 {[%emt 0:04:13]} 12. Bxc3 {[%emt 0:00:16]} Qd5 {[%emt 0:00:07]} 13. Qxd5 {[%emt 0:03:24]} cxd5 {[%emt 0:08:52]} 14. e3 {[%emt 0:11:29]} O-O-O {[%emt 0:10:55]} 15. Ba5 {[%emt 0:18:09]} e6 {[%emt 0:07:14]} 16. Bxb6 {[%emt 0:12:33]} axb6 {[%emt 0:00:06]} 17. f4 {[%emt 0:00:01]} Be7 {[%emt 0:01:24]} 18. Bb5 {[%emt 0:02:36]} Bh4 {[%emt 0:04:39]} 19. Rhf1 {[%emt 0:00:13]} Rhg8 {[%emt 0:03:06]} 20. Bd3 {[%emt 0:03:39]} f5 {[%emt 0:02:35]} 21. f3 {[%emt 0:06:31]} g5 {[%emt 0:11:31]} 22. fxg5 {[%emt 0:03:15]} Bxg5 {[%emt 0:00:07]} 23. Kd2 {[%emt 0:00:16]} f4 {[%emt 0:01:38]} 24. exf4 {[%emt 0:00:38]} Bxf4+ {[%emt 0:00:09]} 25. Ke2 {[%emt 0:00:17]} Rg2+ {[%emt 0:04:52]} 26. Rf2 {[%emt 0:00:21]} Rdg8 {[%emt 0:00:24]} 27. Bxh7 {[%emt 0:03:18]} Rxf2+ {[%emt 0:00:26]} 28. Kxf2 {[%emt 0:00:05]} Rh8 {[%emt 0:00:07]} 29. Bd3 {[%emt 0:03:56]} Rxh2+ {[%emt 0:00:06]} 30. Kf1 {[%emt 0:02:21]} Rxb2 {[%emt 0:00:20]} 31. a4 {[%emt 0:00:08]} Kc7 {[%emt 0:02:03]} 32. Bb5 {[%emt 0:00:59]} Kd6 {[%emt 0:01:33]} 33. Rd3 {[%emt 0:00:06]} Bg5 {[%emt 0:02:41]} 34. Ke1 {[%emt 0:01:03]} Bf6 {[%emt 0:01:23]} 35. Rd2 {[%emt 0:00:16]} Rb4 {[%emt 0:00:21]} 36. Rh2 {[%emt 0:01:02]} Rb1+ {[%emt 0:00:58]} 37. Kf2 {[%emt 0:00:59]} Bxd4+ {[%emt 0:00:52]} 38. Kg2 {[%emt 0:00:14]} Rg1+ {[%emt 0:07:10]} 39. Kh3 {[%emt 0:00:17]} e5 {[%emt 0:01:51]} 40. Rg2 {[%emt 0:00:00]} Rh1+ {[%emt 0:00:00]} 41. Kg4 {[%emt 0:00:39]} Rh8 {[%emt 0:01:47]} 42. Rc2 {[%emt 0:08:07]} Rg8+ {[%emt 0:00:42]} 43. Kh3 {[%emt 0:02:42]} Be3 {[%emt 0:01:21]} 44. Rg2 {[%emt 0:09:36]} Rh8+ {[%emt 0:00:50]} 45. Kg3 {[%emt 0:01:25]} Kc5 {[%emt 0:06:25]} 46. Rc2+ {[%emt 0:01:09]} Kd6 {[%emt 0:00:59]} 47. Rg2 {[%emt 0:00:29]} Rc8 {[%emt 0:05:08]} 48. Kh3 {[%emt 0:01:14]} Rc1 {[%emt 0:02:47]} 49. Kg4 {[%emt 0:03:52]} Ke6 {[%emt 0:02:38]} 50. Be2 {[%emt 0:04:27]} Bf4 {[%emt 0:00:48]} 51. Bb5 {[%emt 0:00:11]} Ra1 {[%emt 0:02:48]} 52. Kh5 {[%emt 0:01:37]} Rh1+ {[%emt 0:02:24]} 53. Kg6 {[%emt 0:00:46]} Rh3 {[%emt 0:01:10]} 54. Be2 {[%emt 0:00:04]} Rh6+ {[%emt 0:04:05]} 55. Kg7 {[%emt 0:00:04]} Kf5 {[%emt 0:01:23]} 56. Bd1 {[%emt 0:04:22]} e4 {[%emt 0:01:21]} 57. Bc2 {[%emt 0:01:21]} Rc6 {[%emt 0:02:56]} 58. Re2 {[%emt 0:00:34]} Rc8 {[%emt 0:00:22]} 59. fxe4+ {[%emt 0:00:09]} dxe4 {[%emt 0:00:43]} 60. Bxe4+ {[%emt 0:00:02]} Kg5 {[%emt 0:00:12]} 61. Rg2+ {[%emt 0:00:24]} Kh4 {[%emt 0:00:27]} 62. Bd3 {[%emt 0:00:21]} 1/2-1/2

[Event "Reykjavik Open 2022"]
[Site "Reykjavik"]
[Date "2022.04.06"]
[Round "1.43"]
[White "Brunello, Marina"]
[Black "Briem, Stephan"]
[Result "1-0"]
[ECO "C42"]
[WhiteElo "2352"]
[BlackElo "2039"]
[Annotator "ChessBase"]
[PlyCount "173"]
[EventDate "2022.04.06"]
[EventCountry "ISL"]
[SourceTitle "playchess.com"]
[Source "ChessBase"]
[SourceQuality "1"]
[TimeControl "40/5400+30:1800+30"]

1. e4 {[%emt 0:00:05]} e5 {[%emt 0:00:16]} 2. Nf3 {[%emt 0:00:21]} Nf6 {[%emt 0:00:13]} 3. Nxe5 {[%emt 0:01:51]} d6 {[%emt 0:00:08]} 4. Nf3 {[%emt 0:00:04]} Nxe4 {[%emt 0:00:06]} 5. Bd3 {[%emt 0:00:27]} d5 {[%emt 0:04:13]} 6. O-O {[%emt 0:00:29]} Be7 {[%emt 0:03:34]} 7. c3 {[%emt 0:10:38]} O-O {[%emt 0:01:14]} 8. Bc2 {[%emt 0:00:23]} Nd6 {[%emt 0:17:27]} 9. h3 {[%emt 0:02:22]} Bf5 {[%emt 0:01:46]} 10. d3 {[%emt 0:00:06]} Nd7 {[%emt 0:10:28]} 11. Bf4 {[%emt 0:05:50]} h6 {[%emt 0:07:47]} 12. Nbd2 {[%emt 0:01:11]} Ne8 {[%emt 0:03:30]} 13. Nd4 {[%emt 0:13:02]} Bg6 {[%emt 0:06:50]} 14. N2f3 {[%emt 0:02:44]} Bd6 {[%emt 0:01:51]} 15. Bg3 {[%emt 0:00:12]} c5 {[%emt 0:15:55]} 16. Ne2 {[%emt 0:01:00]} Qc7 {[%emt 0:05:38]} 17. d4 {[%emt 0:07:55]} Be4 {[%emt 0:06:57]} 18. dxc5 {[%emt 0:02:58]} Qxc5 {[%emt 0:03:39]} 19. Nfd4 {[%emt 0:03:19]} Ndf6 {[%emt 0:01:16]} 20. Bb3 {[%emt 0:19:21]} Nc7 {[%emt 0:03:31]} 21. Nf4 {[%emt 0:01:55]} Rae8 {[%emt 0:01:12]} 22. Nd3 {[%emt 0:06:09]} Qb6 {[%emt 0:01:01]} 23. Bxd6 {[%emt 0:01:57]} Qxd6 {[%emt 0:00:02]} 24. Qd2 {[%emt 0:01:13]} Ne6 {[%emt 0:02:27]} 25. Nxe6 {[%emt 0:02:09]} fxe6 {[%emt 0:00:38]} 26. Nf4 {[%emt 0:01:54]} Rd8 {[%emt 0:01:17]} 27. Rad1 {[%emt 0:01:20]} Qb6 {[%emt 0:00:32]} 28. Qd4 {[%emt 0:03:34]} Qd6 {[%emt 0:00:15]} 29. Nd3 {[%emt 0:00:23]} Nd7 {[%emt 0:00:38]} 30. Rfe1 {[%emt 0:00:29]} Qc7 {[%emt 0:00:35]} 31. f3 {[%emt 0:02:31]} Bxd3 {[%emt 0:00:28]} 32. Rxd3 {[%emt 0:00:11]} Rf6 {[%emt 0:00:22]} 33. Rde3 {[%emt 0:01:07]} Nf8 {[%emt 0:00:35]} 34. Bc2 {[%emt 0:05:46]} b6 {[%emt 0:00:24]} 35. Re5 {[%emt 0:01:20]} Rc8 {[%emt 0:00:34]} 36. Bb3 {[%emt 0:00:44]} Qc5 {[%emt 0:00:34]} 37. R5e3 {[%emt 0:00:22]} Qc7 {[%emt 0:00:30]} 38. Qe5 {[%emt 0:00:49]} Qc5 {[%emt 0:00:24]} 39. Qd4 {[%emt 0:00:42]} Qc7 {[%emt 0:00:21]} 40. Kh1 {[%emt 0:00:00]} Qg3 {[%emt 0:00:00]} 41. Qg4 {[%emt 0:03:17]} Qd6 {[%emt 0:07:03]} 42. Re5 {[%emt 0:01:43]} Rc7 {[%emt 0:00:57]} 43. Qa4 {[%emt 0:05:46]} Qc6 {[%emt 0:14:10]} 44. Qxc6 {[%emt 0:03:47]} Rxc6 {[%emt 0:00:01]} 45. Ba4 {[%emt 0:00:38]} Rc8 {[%emt 0:01:35]} 46. Bb5 {[%emt 0:00:51]} Kf7 {[%emt 0:00:59]} 47. R5e3 {[%emt 0:01:14]} Rc7 {[%emt 0:02:02]} 48. g3 {[%emt 0:00:18]} g5 {[%emt 0:01:27]} 49. Kg2 {[%emt 0:00:04]} Ng6 {[%emt 0:01:47]} 50. Bd3 {[%emt 0:00:15]} Ne7 {[%emt 0:00:47]} 51. Rh1 {[%emt 0:00:31]} Nf5 {[%emt 0:03:03]} 52. Ree1 {[%emt 0:02:35]} d4 {[%emt 0:01:28]} 53. cxd4 {[%emt 0:00:15]} Nxd4 {[%emt 0:00:09]} 54. Be4 {[%emt 0:00:03]} Rd7 {[%emt 0:02:06]} 55. Rd1 {[%emt 0:00:48]} e5 {[%emt 0:00:36]} 56. h4 {[%emt 0:00:07]} gxh4 {[%emt 0:00:30]} 57. Rxh4 {[%emt 0:00:06]} Rfd6 {[%emt 0:00:38]} 58. Kf2 {[%emt 0:02:04]} Ne6 {[%emt 0:00:29]} 59. Rxd6 {[%emt 0:00:14]} Rxd6 {[%emt 0:00:02]} 60. Rxh6 {[%emt 0:00:45]} Rd8 {[%emt 0:00:54]} 61. Ke3 {[%emt 0:00:45]} Ng7 {[%emt 0:00:36]} 62. Rc6 {[%emt 0:01:03]} Rd7 {[%emt 0:00:31]} 63. g4 {[%emt 0:00:39]} Ke7 {[%emt 0:00:27]} 64. f4 {[%emt 0:00:45]} exf4+ {[%emt 0:00:25]} 65. Kxf4 {[%emt 0:00:03]} Ne8 {[%emt 0:00:35]} 66. Ke5 {[%emt 0:01:13]} Rd2 {[%emt 0:00:25]} 67. Rc2 {[%emt 0:00:15]} Rd1 {[%emt 0:00:27]} 68. Rh2 {[%emt 0:02:35]} Nf6 {[%emt 0:00:34]} 69. Bf5 {[%emt 0:00:48]} Rg1 {[%emt 0:00:31]} 70. Kf4 {[%emt 0:00:20]} Nd5+ {[%emt 0:00:34]} 71. Kf3 {[%emt 0:00:11]} Rf1+ {[%emt 0:00:26]} 72. Ke2 {[%emt 0:00:14]} Rg1 {[%emt 0:00:34]} 73. Kf2 {[%emt 0:02:29]} Rd1 {[%emt 0:00:21]} 74. Kg3 {[%emt 0:01:37]} a5 {[%emt 0:00:38]} 75. Re2+ {[%emt 0:00:18]} Kd6 {[%emt 0:00:33]} 76. Kh4 {[%emt 0:00:52]} Nf4 {[%emt 0:00:23]} 77. Rc2 {[%emt 0:01:01]} Rh1+ {[%emt 0:00:34]} 78. Kg5 {[%emt 0:00:05]} Nd5 {[%emt 0:00:28]} 79. Rd2 {[%emt 0:00:38]} Re1 {[%emt 0:00:28]} 80. Bc2 {[%emt 0:01:07]} Ke5 {[%emt 0:00:30]} 81. Bb3 {[%emt 0:00:34]} Nf6 {[%emt 0:00:28]} 82. Rg2 {[%emt 0:00:08]} Re4 {[%emt 0:00:36]} 83. Bc2 {[%emt 0:00:19]} Re1 {[%emt 0:00:28]} 84. Bd3 {[%emt 0:00:07]} Ke6 {[%emt 0:00:35]} 85. Re2+ {[%emt 0:00:52]} Rxe2 {[%emt 0:00:15]} 86. Bxe2 {[%emt 0:00:04]} Nd5 {[%emt 0:00:23]} 87. Bc4 {[%emt 0:00:37]} 1-0

[Event "Reykjavik Open 2022"]
[Site "Reykjavik"]
[Date "2022.04.06"]
[Round "1.44"]
[White "Kartsev, Nikolay"]
[Black "Cummings, David H."]
[Result "1/2-1/2"]
[ECO "B13"]
[WhiteElo "2036"]
[BlackElo "2327"]
[Annotator "NA"]
[PlyCount "75"]
[EventDate "2022.04.06"]
[EventCountry "ISL"]
[SourceTitle "playchess.com"]
[Source "ChessBase"]
[SourceQuality "1"]
[TimeControl "40/5400+30:1800+30"]

1. e4 {[%emt 0:00:02]} c6 {[%emt 0:00:11]} 2. d4 {[%emt 0:00:06]} d5 {[%emt 0:00:07]} 3. exd5 {[%emt 0:00:06]} cxd5 {[%emt 0:00:06]} 4. c4 {[%emt 0:00:04]} Nf6 {[%emt 0:00:32]} 5. Nc3 {[%emt 0:00:10]} Nc6 {[%emt 0:00:10]} 6. Nf3 {[%emt 0:00:11]} Bg4 {[%emt 0:00:52]} 7. cxd5 {[%emt 0:00:24]} Nxd5 {[%emt 0:00:16]} 8. Qb3 {[%emt 0:01:08]} Bxf3 {[%emt 0:00:52]} 9. gxf3 {[%emt 0:00:10]} e6 {[%emt 0:00:50]} 10. Qxb7 {[%emt 0:00:19]} Nxd4 {[%emt 0:00:53]} 11. Bb5+ {[%emt 0:00:08]} Nxb5 {[%emt 0:00:07]} 12. Qc6+ {[%emt 0:00:11]} Ke7 {[%emt 0:00:23]} 13. Qxb5 {[%emt 0:00:12]} Qd7 {[%emt 0:01:34]} 14. Nxd5+ {[%emt 0:01:50]} Qxd5 {[%emt 0:04:27]} 15. Qxd5 {[%emt 0:08:17]} exd5 {[%emt 0:00:05]} 16. Be3 {[%emt 0:05:32]} Ke6 {[%emt 0:04:53]} 17. O-O-O {[%emt 0:03:10]} Bb4 {[%emt 0:01:46]} 18. a3 {[%emt 0:02:09]} Rhc8+ {[%emt 0:01:49]} 19. Kb1 {[%emt 0:00:06]} Bc5 {[%emt 0:00:53]} 20. Bd4 {[%emt 0:10:30]} Bxd4 {[%emt 0:08:54]} 21. Rxd4 {[%emt 0:00:02]} Rd8 {[%emt 0:05:33]} 22. Re1+ {[%emt 0:03:29]} Kd6 {[%emt 0:01:19]} 23. Red1 {[%emt 0:00:48]} Ke6 {[%emt 0:03:57]} 24. Re1+ {[%emt 0:02:10]} Kd6 {[%emt 0:03:32]} 25. f4 {[%emt 0:09:27]} a5 {[%emt 0:08:36]} 26. Re5 {[%emt 0:05:00]} Kc5 {[%emt 0:01:22]} 27. Rd3 {[%emt 0:01:09]} Ra6 {[%emt 0:09:14]} 28. Re7 {[%emt 0:08:06]} Rf6 {[%emt 0:00:41]} 29. Rc7+ {[%emt 0:02:26]} Kb6 {[%emt 0:02:49]} 30. Rc2 {[%emt 0:02:38]} Rdd6 {[%emt 0:18:52]} 31. Rb3+ {[%emt 0:03:10]} Ka6 {[%emt 0:00:17]} 32. Rc5 {[%emt 0:09:38]} Rxf4 {[%emt 0:09:01]} 33. Rbb5 {[%emt 0:02:28]} d4 {[%emt 0:02:11]} 34. Rxa5+ {[%emt 0:02:41]} Kb7 {[%emt 0:00:05]} 35. Rab5+ {[%emt 0:00:41]} Ka6 {[%emt 0:01:09]} 36. Ra5+ {[%emt 0:00:23]} Kb7 {[%emt 0:00:20]} 37. Rab5+ {[%emt 0:00:06]} Ka6 {[%emt 0:00:48]} 38. Ra5+ {[%emt 0:17:09]} 1/2-1/2

[Event "Reykjavik Open 2022"]
[Site "Reykjavik"]
[Date "2022.04.06"]
[Round "1.45"]
[White "Heimisson, Hilmir Freyr"]
[Black "Collins, Adam"]
[Result "1-0"]
[ECO "D77"]
[WhiteElo "2312"]
[BlackElo "1984"]
[Annotator "NA RC"]
[PlyCount "59"]
[EventDate "2022.04.06"]
[EventCountry "ISL"]
[SourceTitle "playchess.com"]
[Source "ChessBase"]
[SourceQuality "1"]
[TimeControl "40/5400+30:1800+30"]

1. c4 {[%emt 0:00:03]} Nf6 {[%emt 0:01:53]} 2. Nf3 {[%emt 0:00:54]} g6 {[%emt 0:00:29]} 3. d4 {[%emt 0:00:19]} Bg7 {[%emt 0:00:15]} 4. g3 {[%emt 0:00:05]} d5 {[%emt 0:00:06]} 5. Bg2 {[%emt 0:04:59]} O-O {[%emt 0:00:34]} 6. O-O {[%emt 0:00:31]} dxc4 {[%emt 0:09:26]} 7. Na3 {[%emt 0:00:11]} Nc6 {[%emt 0:06:54]} 8. Nxc4 {[%emt 0:05:53]} Be6 {[%emt 0:01:09]} 9. b3 {[%emt 0:02:58]} Bd5 {[%emt 0:04:57]} 10. Bb2 {[%emt 0:00:12]} a5 {[%emt 0:07:30]} 11. Rc1 {[%emt 0:00:06]} a4 {[%emt 0:12:27]} 12. bxa4 {[%emt 0:00:07]} Qb8 {[%emt 0:12:06]} 13. Ne3 {[%emt 0:19:29]} Be4 {[%emt 0:05:18]} 14. Qb3 {[%emt 0:16:09]} e6 {[%emt 0:02:57]} 15. Ne5 {[%emt 0:10:06]} Bxg2 {[%emt 0:01:45]} 16. Kxg2 {[%emt 0:00:14]} Nxe5 {[%emt 0:00:54]} 17. dxe5 {[%emt 0:00:10]} Nd7 {[%emt 0:00:43]} 18. Ng4 {[%emt 0:01:26]} Rd8 {[%emt 0:05:08]} 19. Nf6+ {[%emt 0:12:53]} Nxf6 {[%emt 0:02:32]} 20. exf6 {[%emt 0:00:07]} Bf8 {[%emt 0:01:13]} 21. Rfd1 {[%emt 0:04:35]} b6 {[%emt 0:02:27]} 22. Rxd8 {[%emt 0:04:20]} Qb7+ {[%emt 0:00:49]} 23. Qf3 {[%emt 0:01:13]} Qxf3+ {[%emt 0:00:09]} 24. Kxf3 {[%emt 0:00:38]} Rxd8 {[%emt 0:00:04]} 25. Rxc7 {[%emt 0:00:07]} Ra8 {[%emt 0:01:56]} 26. Bd4 {[%emt 0:03:53]} Rxa4 {[%emt 0:03:26]} 27. Bxb6 {[%emt 0:00:31]} Rb4 {[%emt 0:00:59]} 28. Be3 {[%emt 0:04:56]} h6 {[%emt 0:02:07]} 29. Rc8 {[%emt 0:00:19]} g5 {[%emt 0:00:40]} 30. Rxf8+ {[%emt 0:00:09]} 1-0

[Event "Reykjavik Open 2022"]
[Site "Reykjavik"]
[Date "2022.04.06"]
[Round "1.46"]
[White "Ritzka, Simon"]
[Black "Lim, Zhuo Ren"]
[Result "1/2-1/2"]
[ECO "B22"]
[WhiteElo "2038"]
[BlackElo "2317"]
[Annotator "NA RC"]
[PlyCount "79"]
[EventDate "2022.04.06"]
[EventCountry "ISL"]
[SourceTitle "playchess.com"]
[Source "ChessBase"]
[SourceQuality "1"]
[TimeControl "40/5400+30:1800+30"]

1. e4 {[%emt 0:00:03]} c5 {[%emt 0:00:08]} 2. c3 {[%emt 0:00:04]} Nf6 {[%emt 0:00:19]} 3. e5 {[%emt 0:00:06]} Nd5 {[%emt 0:00:09]} 4. Nf3 {[%emt 0:00:04]} d6 {[%emt 0:00:45]} 5. exd6 {[%emt 0:00:46]} e6 {[%emt 0:00:26]} 6. g3 {[%emt 0:00:34]} Bxd6 {[%emt 0:00:23]} 7. Bg2 {[%emt 0:00:21]} Nc6 {[%emt 0:01:15]} 8. d4 {[%emt 0:00:20]} cxd4 {[%emt 0:00:38]} 9. Nxd4 {[%emt 0:00:10]} Nxd4 {[%emt 0:01:12]} 10. Qxd4 {[%emt 0:00:43]} O-O {[%emt 0:00:13]} 11. O-O {[%emt 0:00:19]} Qc7 {[%emt 0:00:47]} 12. Nd2 {[%emt 0:11:20]} Bd7 {[%emt 0:01:24]} 13. Rd1 {[%emt 0:03:19]} Be5 {[%emt 0:05:58]} 14. Qc4 {[%emt 0:07:06]} Bc6 {[%emt 0:01:03]} 15. Nf3 {[%emt 0:03:31]} Bf6 {[%emt 0:03:08]} 16. Bg5 {[%emt 0:10:13]} Nb6 {[%emt 0:04:18]} 17. Qg4 {[%emt 0:20:28]} Bxg5 {[%emt 0:00:32]} 18. Nxg5 {[%emt 0:00:12]} h6 {[%emt 0:01:49]} 19. Nf3 {[%emt 0:04:45]} Rad8 {[%emt 0:06:33]} 20. b3 {[%emt 0:08:27]} a5 {[%emt 0:10:33]} 21. c4 {[%emt 0:06:38]} Nd7 {[%emt 0:02:14]} 22. Nd4 {[%emt 0:03:14]} Bxg2 {[%emt 0:00:36]} 23. Kxg2 {[%emt 0:00:06]} Nc5 {[%emt 0:00:55]} 24. Qf3 {[%emt 0:02:25]} Qe5 {[%emt 0:02:05]} 25. Nb5 {[%emt 0:10:54]} f5 {[%emt 0:02:28]} 26. Rxd8 {[%emt 0:01:52]} Rxd8 {[%emt 0:00:03]} 27. Rd1 {[%emt 0:00:15]} Rxd1 {[%emt 0:02:39]} 28. Qxd1 {[%emt 0:00:12]} Qe4+ {[%emt 0:00:20]} 29. f3 {[%emt 0:02:09]} Qe3 {[%emt 0:00:41]} 30. Qd4 {[%emt 0:00:24]} Qxd4 {[%emt 0:01:22]} 31. Nxd4 {[%emt 0:00:06]} Kf7 {[%emt 0:00:05]} 32. Kf2 {[%emt 0:00:23]} Kf6 {[%emt 0:01:24]} 33. Ke3 {[%emt 0:01:15]} e5 {[%emt 0:00:30]} 34. Nb5 {[%emt 0:00:28]} g5 {[%emt 0:00:20]} 35. Nc3 {[%emt 0:01:24]} f4+ {[%emt 0:02:11]} 36. Ke2 {[%emt 0:01:29]} h5 {[%emt 0:03:34]} 37. Ne4+ {[%emt 0:01:46]} Nxe4 {[%emt 0:00:02]} 38. fxe4 {[%emt 0:00:05]} g4 {[%emt 0:23:13]} 39. a3 {[%emt 0:00:41]} Ke6 {[%emt 0:08:39]} 40. b4 {[%emt 0:00:00]} 1/2-1/2

[Event "Reykjavik Open 2022"]
[Site "Reykjavik"]
[Date "2022.04.06"]
[Round "1.47"]
[White "Sarkar, Justin"]
[Black "Steiner, Juraj"]
[Result "1-0"]
[ECO "A90"]
[WhiteElo "2314"]
[BlackElo "2027"]
[Annotator "RC"]
[PlyCount "77"]
[EventDate "2022.04.06"]
[EventCountry "ISL"]
[SourceTitle "playchess.com"]
[Source "ChessBase"]
[SourceQuality "1"]
[TimeControl "40/5400+30:1800+30"]

1. d4 {[%emt 0:00:02]} e6 {[%emt 0:00:27]} 2. Nf3 {[%emt 0:01:54]} f5 {[%emt 0:00:40]} 3. g3 {[%emt 0:02:28]} Nf6 {[%emt 0:00:25]} 4. Bg2 {[%emt 0:00:11]} d5 {[%emt 0:00:42]} 5. O-O {[%emt 0:01:10]} Bd6 {[%emt 0:03:16]} 6. c4 {[%emt 0:01:55]} c6 {[%emt 0:00:50]} 7. Qc2 {[%emt 0:02:00]} O-O {[%emt 0:02:37]} 8. Ne5 {[%emt 0:00:46]} Nbd7 {[%emt 0:09:52]} 9. Nd3 {[%emt 0:00:52]} e5 {[%emt 0:05:42]} 10. cxd5 {[%emt 0:05:41]} cxd5 {[%emt 0:02:52]} 11. dxe5 {[%emt 0:00:38]} Nxe5 {[%emt 0:00:23]} 12. Nf4 {[%emt 0:07:50]} Kh8 {[%emt 0:01:27]} 13. Nxd5 {[%emt 0:02:35]} Nxd5 {[%emt 0:13:36]} 14. Bxd5 {[%emt 0:00:06]} Ng6 {[%emt 0:01:11]} 15. Nc3 {[%emt 0:21:58]} f4 {[%emt 0:03:04]} 16. Be4 {[%emt 0:02:55]} Bh3 {[%emt 0:04:48]} 17. Rd1 {[%emt 0:05:15]} fxg3 {[%emt 0:07:28]} 18. hxg3 {[%emt 0:00:08]} Qf6 {[%emt 0:02:09]} 19. Be3 {[%emt 0:02:50]} Bf4 {[%emt 0:07:53]} 20. Nd5 {[%emt 0:02:18]} Qg5 {[%emt 0:00:09]} 21. Nxf4 {[%emt 0:07:33]} Nxf4 {[%emt 0:00:33]} 22. Kh2 {[%emt 0:14:33]} Rae8 {[%emt 0:09:04]} 23. Bxf4 {[%emt 0:02:25]} Rxf4 {[%emt 0:01:41]} 24. gxf4 {[%emt 0:02:57]} Qh4 {[%emt 0:03:11]} 25. Kg1 {[%emt 0:03:56]} Qg4+ {[%emt 0:00:29]} 26. Kh2 {[%emt 0:00:04]} Qh4 {[%emt 0:00:16]} 27. Rd4 {[%emt 0:05:46]} Qxf2+ {[%emt 0:10:30]} 28. Kxh3 {[%emt 0:00:05]} Qxd4 {[%emt 0:00:09]} 29. Rd1 {[%emt 0:00:18]} Qe3+ {[%emt 0:00:42]} 30. Bf3 {[%emt 0:00:09]} Qxf4 {[%emt 0:00:42]} 31. Qe4 {[%emt 0:00:35]} Qh6+ {[%emt 0:04:18]} 32. Kg2 {[%emt 0:01:08]} Qg5+ {[%emt 0:00:08]} 33. Qg4 {[%emt 0:00:05]} Qb5 {[%emt 0:00:58]} 34. Rh1 {[%emt 0:01:57]} h6 {[%emt 0:00:25]} 35. Qd4 {[%emt 0:02:00]} Re5 {[%emt 0:02:40]} 36. Qd8+ {[%emt 0:00:09]} Re8 {[%emt 0:00:31]} 37. Qd4 {[%emt 0:00:09]} Re5 {[%emt 0:00:14]} 38. Rh4 {[%emt 0:00:39]} h5 {[%emt 0:01:48]} 39. Qxe5 {[%emt 0:00:21]} 1-0